bitfinex/quotes_ETHUSD_20240915
["timestamp","ask_amount","ask_price","bid_price","bid_amount"]
[1726396492181,2.2716,2415.0,2414.7,1.90412289]
[1726396492481,2.2716,2415.0,2414.8,1.53428962]
[1726396492780,2.2716,2415.0,2414.8,0.21979122]
[1726396493139,2.2716,2415.0,2414.7,1.90412289]
[1726396493335,2.2716,2415.0,2414.9,0.2196634]
[1726396493596,2.2716,2415.0,2414.8,0.21979122]
[1726396493789,2.2716,2415.0,2414.6,1.30350553]
[1726396493790,2.2716,2415.0,2414.9,0.2196634]
[1726396493943,2.2716,2415.0,2414.6,0.86900369]
[1726396494145,2.2716,2415.0,2414.7,2.1835255]
[1726396494455,2.2716,2415.0,2414.8,1.31452181]
[1726396494665,2.2716,2415.0,2414.8,0.21979122]
[1726396494882,2.2716,2415.0,2414.7,0.86900369]
[1726396495047,2.2716,2415.0,2414.9,0.2196634]
[1726396495250,2.2716,2415.0,2414.8,0.21979122]
[1726396495485,2.2716,2415.0,2414.7,0.86900369]
[1726396495777,2.2716,2415.0,2414.9,0.2196634]
[1726396495976,2.2716,2415.0,2414.8,1.31455186]
[1726396495977,2.2716,2415.0,2414.8,0.21979122]
[1726396496199,2.2716,2415.0,2414.9,0.2196634]
[1726396496542,2.2716,2415.0,2414.7,6.48154317]
[1726396496846,2.2716,2415.0,2414.8,1.53433721]
[1726396497047,2.2716,2415.0,2414.8,0.21979122]
[1726396497267,2.2716,2415.0,2414.7,6.48154317]
[1726396497472,2.2716,2415.0,2414.9,0.2196634]
[1726396497680,2.2716,2415.0,2414.8,0.21980858]
[1726396497885,2.2716,2415.0,2414.7,5.01029369]
[1726396498186,2.2716,2415.0,2414.9,0.21968077]
[1726396498345,2.2716,2415.0,2414.8,0.21980858]
[1726396498772,2.2716,2415.0,2414.7,6.55740798]
[1726396498982,2.2716,2415.0,2414.9,0.21968077]
[1726396499546,2.2716,2415.0,2414.7,5.01029369]
[1726396499874,2.2716,2415.0,2414.8,1.53436889]
[1726396500078,2.2716,2415.0,2414.8,0.21980858]
[1726396500246,2.2716,2415.0,2414.7,6.55740798]
[1726396500454,2.2716,2415.0,2414.9,0.21968077]
[1726396500648,2.2716,2415.0,2414.8,0.21980858]
[1726396500853,2.2716,2415.0,2414.7,0.86900369]
[1726396501163,2.2716,2415.0,2414.9,0.21968077]
[1726396501356,2.2716,2415.0,2414.8,0.21980858]
[1726396501593,2.2716,2415.0,2414.9,0.21968077]
[1726396501948,2.2716,2415.0,2414.7,5.64165161]
[1726396502177,2.2716,2415.0,2414.9,0.21968077]
[1726396502497,3.0195519,2415.2,2414.9,0.21968077]
[1726396502498,5.4023519,2415.2,2414.9,0.21968077]
[1726396502697,5.4023519,2415.2,2414.7,5.01027369]
[1726396502852,5.4023519,2415.2,2415.0,0.21955296]
[1726396503058,5.4023519,2415.2,2414.7,5.01027369]
[1726396503251,5.4023519,2415.2,2415.1,0.21942517]
[1726396503487,7.47501831,2415.2,2414.7,5.01027369]
[1726396503671,5.4023519,2415.2,2415.1,0.21942517]
[1726396503871,5.4023519,2415.2,2414.7,5.01027369]
[1726396504087,5.4023519,2415.2,2415.1,0.21942517]
[1726396504289,2.4023519,2415.2,2414.8,2.395]
[1726396504499,0.0195519,2415.2,2415.1,0.21942517]
[1726396504666,0.0195519,2415.2,2414.9,4.22365899]
[1726396504867,0.0195519,2415.2,2415.1,0.21942517]
[1726396505062,0.0195519,2415.2,2415.0,0.21955296]
[1726396505300,0.0195519,2415.2,2414.9,5.09266268]
[1726396505565,0.0195519,2415.2,2415.0,2.29499604]
[1726396505791,0.0195519,2415.2,2415.0,5.10896923]
[1726396505992,0.0195519,2415.2,2415.1,1.32667712]
[1726396506208,0.0195519,2415.2,2415.1,1.54610229]
[1726396506569,0.0195519,2415.2,2415.1,8.08171229]
[1726396506802,0.0195519,2415.2,2415.1,14.69677143]
[1726396506972,0.0195519,2415.2,2415.1,15.23983826]
[1726396507178,0.0195519,2415.2,2415.1,15.86618714]
[1726396507409,0.0195519,2415.2,2415.1,16.89837964]
[1726396507576,0.0195519,2415.2,2415.1,20.90394015]
[1726396507781,0.0195519,2415.2,2415.1,22.64194753]
[1726396508184,0.0195519,2415.2,2415.1,22.2086259]
[1726396508519,0.0195519,2415.2,2415.1,20.90394015]
[1726396508680,0.0195519,2415.2,2415.1,25.64194753]
[1726396508867,0.0195519,2415.2,2415.1,26.08077393]
[1726396509066,0.0195519,2415.2,2415.1,25.9979729]
[1726396509302,0.0195519,2415.2,2415.1,25.55953067]
[1726396509506,0.0195519,2415.2,2415.1,24.39108398]
[1726396509677,0.0195519,2415.2,2415.1,24.93404643]
[1726396509878,0.0195519,2415.2,2415.1,25.55938585]
[1726396511168,0.0195519,2415.2,2415.1,23.8209943]
[1726396511704,0.0195519,2415.2,2415.1,25.12024456]
[1726396513431,0.0195519,2415.2,2415.1,24.57728211]
[1726396513918,0.0195519,2415.2,2415.1,25.12023305]
[1726396514290,0.0195519,2415.2,2415.1,24.57728211]
[1726396516013,0.0195519,2415.2,2415.1,21.5070741]
[1726396516218,0.0195519,2415.2,2415.1,26.1976841]
[1726396516386,0.0195519,2415.2,2415.1,29.26187336]
[1726396516577,0.0195519,2415.2,2415.1,29.26017299]
[1726396517001,0.0195519,2415.2,2415.1,28.63483357]
[1726396517791,1.9e-06,2415.2,2415.1,29.17776688]
[1726396518484,1.9e-06,2415.2,2415.1,28.63483357]
[1726396519174,1.9e-06,2415.2,2415.1,26.43741603]
[1726396519786,1.9e-06,2415.2,2415.1,25.57064431]
[1726396520323,1.9e-06,2415.2,2415.1,26.43730373]
[1726396521322,1.9e-06,2415.2,2415.1,26.43610189]
[1726396522286,1.9e-06,2415.2,2415.1,22.29549189]
[1726396523403,1.9e-06,2415.2,2415.1,22.29524443]
[1726396526350,1.9e-06,2415.2,2415.1,26.43568067]
[1726396526548,1.9e-06,2415.2,2415.1,22.29507067]
[1726396526729,1.9e-06,2415.2,2415.1,25.56902125]
[1726396527354,1.9e-06,2415.2,2415.1,22.29453227]
[1726396527504,1.9e-06,2415.2,2415.1,25.56902125]
[1726396527710,1.9e-06,2415.2,2415.1,28.63080826]
[1726396528047,1.9e-06,2415.2,2415.1,29.60940708]
[1726396528259,1.9e-06,2415.2,2415.1,28.62714306]
[1726396528816,1.9e-06,2415.2,2415.1,29.60941387]
[1726396529514,0.0396771,2416.0,2415.9,8.27848]
[1726396529919,0.0396771,2416.0,2415.9,8.49640981]
[1726396531054,2.4989771,2416.0,2415.9,8.49640981]
[1726396540786,0.0396771,2416.0,2415.9,8.49640981]
[1726396541086,0.0396771,2416.0,2415.9,8.57918026]
[1726396541397,0.0396771,2416.0,2415.9,9.32794653]
[1726396544370,0.0396771,2416.0,2415.9,13.46718653]
[1726396545090,0.0396771,2416.0,2415.9,13.38441608]
[1726396546372,0.0396771,2416.0,2415.9,9.24517608]
[1726396550294,0.0396771,2416.0,2415.9,10.56716735]
[1726396552679,0.0396771,2416.0,2415.9,11.82374436]
[1726396553092,0.0396771,2416.0,2415.9,10.95792986]
[1726396553286,0.0396771,2416.0,2415.9,11.82374436]
[1726396553535,0.0396771,2416.0,2415.9,11.43298185]
[1726396554026,0.0396771,2416.0,2415.9,11.8237418]
[1726396554596,0.0396771,2416.7,2416.6,8.27608]
[1726396554799,0.0396771,2416.7,2416.6,10.85731881]
[1726396554995,0.0396771,2416.7,2416.6,13.2684734]
[1726396555191,0.0396771,2416.7,2416.6,13.93753772]
[1726396555392,0.0396771,2416.7,2416.6,13.93750498]
[1726396555624,0.0396771,2416.7,2416.6,13.39483803]
[1726396555917,0.0396771,2416.7,2416.6,17.53287803]
[1726396556306,0.0396771,2416.7,2416.6,17.09855594]
[1726396556619,0.0396771,2416.7,2416.6,11.70229616]
[1726396556818,0.0396771,2416.7,2416.6,12.96041212]
[1726396557029,0.0396771,2416.7,2416.6,12.09295229]
[1726396557320,0.0396771,2416.7,2416.6,12.56943795]
[1726396557524,0.0396771,2416.7,2416.6,12.96009238]
[1726396557729,0.0396771,2416.7,2416.6,12.56943795]
[1726396558335,0.0396771,2416.7,2416.6,11.70229616]
[1726396558528,0.0396771,2416.7,2416.6,12.56943795]
[1726396559527,0.0396771,2416.7,2416.6,11.72225489]
[1726396559709,0.0396771,2416.7,2416.6,8.4929512]
[1726396559918,2.3995771,2416.7,2416.6,0.2168712]
[1726396560103,2.3995771,2416.7,2416.6,4.3549112]
[1726396562946,2.3995771,2416.7,2416.6,8.4929512]
[1726396563114,0.0396771,2416.7,2416.6,9.34224632]
[1726396575914,2.4667771,2416.7,2416.6,8.4929512]
[1726396582667,0.0396771,2416.7,2416.6,8.4929512]
[1726396584011,0.0396771,2416.7,2416.6,8.57569905]
[1726396584210,0.0396771,2416.7,2416.6,12.71373905]
[1726396584527,0.0396771,2416.7,2416.6,14.86880049]
[1726396584687,0.0396771,2416.7,2416.6,14.78605264]
[1726396586485,0.0396771,2416.7,2416.6,10.64801264]
[1726396586716,2.3150771,2416.7,2416.6,4.3549112]
[1726396589088,2.3150771,2416.7,2416.6,0.2168712]
[1726396592026,2.3150771,2416.7,2416.4,4.13838]
[1726396592239,2.3150771,2416.7,2416.6,0.21663908]
[1726396592443,2.3150771,2416.7,2416.5,0.21676671]
[1726396592647,2.3150771,2416.7,2416.6,0.21663908]
[1726396593041,2.3150771,2416.7,2416.4,4.13838]
[1726396593243,2.3150771,2416.7,2416.6,0.21663908]
[1726396593460,2.3150771,2416.7,2416.5,4.35486671]
[1726396593629,2.3150771,2416.7,2416.6,0.21663908]
[1726396594919,6.4529471,2416.7,2416.6,0.21663908]
[1726396595119,6.4529471,2416.7,2416.1,2.21237022]
[1726396595120,2.2754,2416.6,2416.1,2.21237022]
[1726396595319,2.2754,2416.6,2416.0,0.86817349]
[1726396595630,2.2754,2416.6,2416.1,1.56160618]
[1726396595826,2.2754,2416.6,2416.3,4.13854]
[1726396596043,2.2754,2416.6,2416.3,4.13844]
[1726396596251,2.2754,2416.6,2416.4,4.35510436]
[1726396596963,2.2754,2416.6,2416.4,0.21689436]
[1726396597172,2.50690771,2416.6,2416.4,0.21689436]
[1726396600006,2.2754,2416.6,2416.4,0.21689436]
[1726396602962,6.41355,2416.6,2416.4,0.21689436]
[1726396603163,2.2754,2416.5,2416.1,5.48371413]
[1726396603367,2.2754,2416.5,2416.2,0.21739048]
[1726396604779,2.2754,2416.5,2416.2,4.35598048]
[1726396605714,2.2754,2416.5,2416.2,4.35610048]
[1726396607448,2.2754,2416.5,2416.2,0.21739048]
[1726396607754,2.50690771,2416.5,2416.2,0.21739048]
[1726396608411,2.50690771,2416.5,2416.1,4.13886]
[1726396608606,2.2754,2416.5,2416.2,0.21742086]
[1726396609447,2.2754,2416.5,2416.2,4.35614086]
[1726396609749,2.2754,2416.5,2416.2,0.21742086]
[1726396624482,5.4305771,2416.7,2416.3,2.4592]
[1726396624897,5.4305771,2416.7,2416.4,0.21721762]
[1726396625172,6.80119481,2416.7,2416.4,0.21721762]
[1726396625533,6.80119481,2416.7,2416.1,4.13878]
[1726396625832,6.80119481,2416.7,2416.2,0.21745775]
[1726396626267,2.3909,2416.6,2416.2,0.21745775]
[1726396627233,3.0396771,2416.7,2416.2,6.81526775]
[1726396628349,3.0396771,2416.7,2416.3,1.34582701]
[1726396628567,7.1775571,2416.7,2416.4,0.21717856]
[1726396628813,3.0396771,2416.7,2416.2,2.4592]
[1726396629018,3.0396771,2416.7,2416.3,0.21730621]
[1726396629191,3.0396771,2416.7,2416.2,6.59791]
[1726396629393,3.0396771,2416.7,2416.3,0.21730621]
[1726396629592,3.0396771,2416.7,2416.2,6.59791]
[1726396629895,3.0396771,2416.7,2416.3,0.21730621]
[1726396630298,3.0396771,2416.7,2416.2,6.59791]
[1726396630619,3.0396771,2416.7,2416.3,0.21730621]
[1726396630923,3.0396771,2416.7,2416.2,6.59791]
[1726396631141,3.0396771,2416.7,2416.4,0.21717856]
[1726396631324,3.0396771,2416.7,2416.3,0.21730621]
[1726396631629,3.0396771,2416.7,2416.4,0.21717856]
[1726396631825,3.0396771,2416.7,2416.2,6.59791]
[1726396631999,3.0396771,2416.7,2416.3,0.21730621]
[1726396632200,3.0396771,2416.7,2416.2,6.59791]
[1726396632418,3.0396771,2416.7,2416.3,0.21730621]
[1726396632735,3.0396771,2416.7,2416.2,6.59791]
[1726396632929,3.0396771,2416.7,2416.4,0.21717856]
[1726396633109,3.0396771,2416.7,2416.3,0.21730621]
[1726396633316,3.0396771,2416.7,2416.5,0.21705091]
[1726396633510,3.0396771,2416.7,2416.4,0.21717856]
[1726396633837,3.0396771,2416.7,2416.5,0.21705091]
[1726396634128,3.0396771,2416.7,2416.2,7.46608349]
[1726396634332,3.0396771,2416.7,2416.6,0.21692327]
[1726396634839,3.0396771,2416.7,2416.3,1.34665298]
[1726396634986,3.0396771,2416.7,2416.4,0.21717856]
[1726396635187,3.0396771,2416.7,2416.2,7.46608349]
[1726396635391,3.0396771,2416.7,2416.3,1.56411838]
[1726396635636,3.0396771,2416.7,2416.3,0.21730621]
[1726396636118,3.0396771,2416.7,2416.2,7.46608349]
[1726396636320,3.0396771,2416.7,2416.4,0.21717856]
[1726396636521,3.0396771,2416.7,2416.3,0.21730621]
[1726396636830,3.0396771,2416.7,2416.4,0.21717856]
[1726396636983,3.0396771,2416.7,2416.2,7.46608349]
[1726396637187,2.3909,2416.6,2416.3,1.56426727]
[1726396637387,2.3909,2416.6,2416.3,0.21730621]
[1726396637630,2.3909,2416.6,2416.1,5.00694349]
[1726396637852,2.3909,2416.6,2416.2,1.56467642]
[1726396637988,2.3909,2416.5,2416.2,0.21744255]
[1726396639395,2.3909,2416.5,2416.3,1.34754511]
[1726396639719,2.3909,2416.5,2416.4,0.21719157]
[1726396640429,2.3909,2416.5,2416.2,0.86817349]
[1726396640607,2.3909,2416.5,2416.3,1.56518193]
[1726396640801,2.3909,2416.5,2416.3,0.21731923]
[1726396641019,2.3909,2416.5,2416.2,0.86817349]
[1726396641203,2.3909,2416.5,2416.3,1.56515735]
[1726396641412,2.3909,2416.5,2416.3,0.21731923]
[1726396641607,2.3909,2416.5,2416.2,0.86817349]
[1726396641808,2.3909,2416.5,2416.3,1.56523132]
[1726396642041,2.3909,2416.5,2416.3,0.21733442]
[1726396642242,2.3909,2416.5,2416.2,0.86817349]
[1726396642535,2.3909,2416.5,2416.3,0.21733225]
[1726396642896,2.3909,2416.5,2416.2,0.86817349]
[1726396643095,2.3909,2416.5,2416.4,0.21720676]
[1726396643335,2.3909,2416.5,2416.3,0.21733442]
[1726396643534,2.3909,2416.5,2416.4,0.21720676]
[1726396643976,2.3909,2416.5,2416.2,0.86817349]
[1726396644149,2.3909,2416.5,2416.4,0.21720676]
[1726396644346,2.3909,2416.5,2416.3,0.21733442]
[1726396644532,2.3909,2416.5,2416.4,0.21720676]
[1726396644932,2.3909,2416.5,2416.2,0.86817349]
[1726396645132,2.3909,2416.5,2416.4,0.21720676]
[1726396645366,2.3909,2416.5,2416.3,0.21733442]
[1726396645520,2.3909,2416.5,2416.2,0.86817349]
[1726396645521,2.3909,2416.5,2416.4,0.21720676]
[1726396645958,2.3909,2416.5,2416.2,0.86817349]
[1726396646271,2.3909,2416.5,2416.4,0.21720676]
[1726396646575,2.3909,2416.5,2416.3,0.21733442]
[1726396646727,2.3909,2416.5,2416.4,0.21720676]
[1726396647057,2.3909,2416.5,2416.4,1.36077435]
[1726396647263,2.3909,2416.5,2416.4,1.57798111]
[1726396647465,2.3909,2416.5,2416.4,1.57798034]
[1726396648022,3.0396771,2416.7,2416.4,1.57798034]
[1726396648273,5.3147771,2416.7,2416.4,0.21720676]
[1726396649561,9.4526671,2416.7,2416.4,0.21720676]
[1726396651756,5.3147771,2416.7,2416.4,0.21720676]
[1726396657075,9.4526771,2416.7,2416.4,0.21720676]
[1726396657284,1.35903571,2416.6,2416.4,0.21720676]
[1726396657572,5.3147771,2416.7,2416.4,0.21720676]
[1726396659184,0.0396771,2416.7,2416.5,1.36070897]
[1726396659347,0.0396771,2416.7,2416.4,7.51254025]
[1726396659546,0.0396771,2416.7,2416.6,0.21696234]
[1726396659783,0.0396771,2416.7,2416.5,0.2170878]
[1726396659970,0.0396771,2416.7,2416.6,0.21696017]
[1726396660285,0.0396771,2416.7,2416.6,1.36055658]
[1726396660573,0.0396771,2416.7,2416.6,0.21696017]
[1726396660773,0.0396771,2416.7,2416.4,7.29533349]
[1726396660959,0.0396771,2416.7,2416.5,2.22016559]
[1726396661162,0.0396771,2416.7,2416.5,1.07679934]
[1726396662338,0.0396771,2416.7,2416.5,0.2170878]
[1726396678828,0.0396771,2416.7,2416.5,2.5632878]
[1726396680395,0.0396771,2416.7,2416.6,4.13804]
[1726396680627,0.0396771,2416.7,2416.6,6.58299133]
[1726396683697,0.0396771,2416.7,2416.6,5.71481784]
[1726396684434,0.0314021,2416.7,2416.6,7.15173617]
[1726396684801,0.0314021,2416.7,2416.6,7.15113785]
[1726396685818,0.0314021,2416.7,2416.6,9.49303785]
[1726396686191,0.0314021,2416.7,2416.6,10.36121134]
[1726396686826,0.0314021,2416.7,2416.6,14.49925134]
[1726396687839,0.0314021,2416.7,2416.6,13.63107785]
[1726396687999,0.0314021,2416.7,2416.6,14.50058613]
[1726396688640,0.0314021,2416.7,2416.6,16.74569422]
[1726396688945,0.0314021,2416.7,2416.6,18.38293428]
[1726396689099,0.0314021,2416.7,2416.6,23.78397702]
[1726396689495,0.0314021,2416.7,2416.6,25.95539011]
[1726396691042,0.0314021,2416.7,2416.6,25.52049067]
[1726396691333,0.0314021,2416.7,2416.6,25.5203767]
[1726396691636,0.0314021,2416.7,2416.6,20.72311916]
[1726396692520,0.0314021,2416.7,2416.6,18.98600178]
[1726396692739,0.0314021,2416.7,2416.6,20.72311916]
[1726396692923,0.0314021,2416.7,2416.6,20.28838027]
[1726396693105,0.0314021,2416.7,2416.6,19.74568706]
[1726396693306,0.0314021,2416.7,2416.6,20.28834443]
[1726396693612,0.0314021,2416.7,2416.6,19.74568706]
[1726396694441,0.0314021,2416.7,2416.6,16.74615205]
[1726396694597,0.0314021,2416.7,2416.6,14.9333176]
[1726396695305,0.0314021,2416.7,2416.6,13.63093911]
[1726396695515,0.0314021,2416.7,2416.6,14.9333176]
[1726396696140,0.0314021,2416.7,2416.6,13.63093911]
[1726396696330,0.0314021,2416.7,2416.6,14.9333176]
[1726396696528,0.0314021,2416.7,2416.6,14.4989901]
[1726396696707,0.0314021,2416.7,2416.6,14.9333176]
[1726396697038,0.0314021,2416.7,2416.6,13.63093911]
[1726396697730,0.0314021,2416.7,2416.6,14.9333176]
[1726396698240,0.0314021,2416.7,2416.6,13.63093911]
[1726396699242,0.0314021,2416.7,2416.6,14.93297065]
[1726396699756,0.0314021,2416.7,2416.6,13.63059216]
[1726396699899,0.0314021,2416.7,2416.6,14.93297065]
[1726396700318,0.0314021,2416.7,2416.6,13.63059216]
[1726396700714,0.0314021,2416.7,2416.6,14.93297065]
[1726396701264,0.0314021,2416.7,2416.6,13.63059216]
[1726396701551,0.0314021,2416.7,2416.6,14.93297065]
[1726396703813,0.0314021,2416.7,2416.6,14.93280691]
[1726396704239,0.0314021,2416.7,2416.6,16.74564136]
[1726396704441,0.0314021,2416.7,2416.6,14.93280691]
[1726396705929,0.0314021,2416.7,2416.6,15.32346898]
[1726396706126,0.0314021,2416.7,2416.6,19.46150898]
[1726396706321,0.0314021,2416.7,2416.6,21.27434343]
[1726396707854,0.0314021,2416.7,2416.6,18.15913049]
[1726396708023,0.0314021,2416.7,2416.6,19.07084691]
[1726396708225,0.0314021,2416.7,2416.6,19.46151047]
[1726396708643,0.0314021,2416.7,2416.6,18.15910067]
[1726396709153,0.0314021,2416.7,2416.6,19.46147916]
[1726396710035,0.0314021,2416.7,2416.6,19.46145045]
[1726396711374,0.0314021,2416.7,2416.6,17.13494767]
[1726396711540,0.0314021,2416.7,2416.6,12.15634437]
[1726396711743,0.0314021,2416.7,2416.6,11.2884684]
[1726396712240,0.0314021,2416.7,2416.6,11.67914353]
[1726396712443,0.0314021,2416.7,2416.6,12.98152202]
[1726396712989,0.0314021,2416.7,2416.6,11.67914353]
[1726396713370,0.0314021,2416.7,2416.6,12.54710272]
[1726396713545,0.0314021,2416.7,2416.6,12.54714567]
[1726396714479,0.0314021,2416.7,2416.6,12.98152202]
[1726396715068,0.0314021,2416.7,2416.6,12.59084689]
[1726396715268,0.0314021,2416.7,2416.6,11.67913929]
[1726396715443,0.0314021,2416.7,2416.6,13.64076142]
[1726396718188,0.0314021,2416.7,2416.6,13.64153879]
[1726396718560,0.0314021,2416.7,2416.6,15.45314942]
[1726396719401,0.0314021,2416.7,2416.6,15.99581378]
[1726396719610,0.0314021,2416.7,2416.6,15.45314942]
[1726396719923,0.0314021,2416.7,2416.6,16.62087838]
[1726396720093,0.0314021,2416.7,2416.6,15.45314942]
[1726396720293,0.0314021,2416.7,2416.6,15.99581562]
[1726396720798,0.0314021,2416.7,2416.6,16.62088942]
[1726396721003,0.0314021,2416.7,2416.6,14.01623109]
[1726396721589,0.0314021,2416.7,2416.6,14.55889523]
[1726396723155,0.0314021,2416.7,2416.6,14.55986746]
[1726396723352,0.0314021,2416.7,2416.6,15.18494355]
[1726396723519,0.0314021,2416.7,2416.6,13.88256506]
[1726396723930,0.0314021,2416.7,2416.6,15.18620791]
[1726396724147,0.0314021,2416.7,2416.6,15.79212906]
[1726396724528,0.0314021,2416.7,2416.6,17.52924644]
[1726396724858,0.0314021,2416.7,2416.6,16.90418416]
[1726396725015,0.0314021,2416.7,2416.6,17.52926025]
[1726396725360,0.0314021,2416.7,2416.6,15.31159168]
[1726396725512,0.0314021,2416.7,2416.6,16.51351395]
[1726396725955,0.0314021,2416.7,2416.6,17.52926568]
[1726396726314,0.0314021,2416.7,2416.6,19.41988858]
[1726396726619,0.0314021,2416.7,2416.6,21.26601856]
[1726396727914,0.0314021,2416.7,2416.6,21.26858462]
[1726396728326,0.0314021,2416.7,2416.6,20.25278327]
[1726396728833,0.0314021,2416.7,2416.6,21.26850837]
[1726396731665,0.0314021,2416.7,2416.6,18.84187733]
[1726396731868,0.0314021,2416.7,2416.6,20.25276935]
[1726396732166,0.0314021,2416.7,2416.6,21.26848912]
[1726396732719,0.0314021,2416.7,2416.6,21.28218512]
[1726396734321,0.0314021,2416.7,2416.6,18.84944794]
[1726396735550,0.0314021,2416.7,2416.6,17.83380804]
[1726396735737,0.0314021,2416.7,2416.6,18.84956151]
[1726396737456,0.0314021,2416.7,2416.6,18.85075938]
[1726396738265,0.0314021,2416.7,2416.6,18.85076728]
[1726396738475,0.0314021,2416.7,2416.6,18.85076725]
[1726396740177,0.0314021,2416.7,2416.6,18.85075211]
[1726396740947,0.0314021,2416.7,2416.6,16.15547131]
[1726396741190,0.0314021,2416.7,2416.6,17.83496327]
[1726396741493,0.0314021,2416.7,2416.6,18.85070219]
[1726396742548,2.3602021,2416.7,2416.6,18.85070219]
[1726396743972,2.3602021,2416.7,2416.6,16.424048]
[1726396744182,2.3602021,2416.7,2416.6,10.80951763]
[1726396744361,2.3602021,2416.7,2416.6,10.40505946]
[1726396744700,2.3602021,2416.7,2416.6,10.40509509]
[1726396744993,2.3602021,2416.7,2416.6,10.40517252]
[1726396745154,2.3602021,2416.7,2416.6,10.40517806]
[1726396745353,2.3602021,2416.7,2416.6,6.12013424]
[1726396745595,2.3602021,2416.7,2416.6,9.25752111]
[1726396745752,2.3602021,2416.7,2416.6,9.25751934]
[1726396745954,2.3602021,2416.7,2416.6,9.80023391]
[1726396747155,0.0314021,2416.7,2416.6,9.80023391]
[1726396747373,0.0314021,2416.7,2416.6,9.40953579]
[1726396747558,0.0314021,2416.7,2416.6,9.8002283]
[1726396750697,0.0314021,2416.7,2416.6,8.86682122]
[1726396750864,0.0314021,2416.7,2416.6,9.40952734]
[1726396751064,0.0314021,2416.7,2416.6,9.80022323]
[1726396752303,0.0314021,2416.7,2416.6,9.25751711]
[1726396755212,0.0314021,2416.7,2416.6,9.79961885]
[1726396755623,0.0314021,2416.7,2416.6,11.19425694]
[1726396755919,0.0314021,2416.7,2416.6,14.41739337]
[1726396756113,0.0314021,2416.7,2416.6,15.72211902]
[1726396756274,0.0314021,2416.7,2416.6,11.58412299]
[1726396757382,0.0314021,2416.7,2416.6,11.5841196]
[1726396757699,0.0314021,2416.7,2416.6,15.7221596]
[1726396757890,0.0314021,2416.7,2416.6,11.5841196]
[1726396758277,0.0314021,2416.7,2416.6,10.27934998]
[1726396758885,0.0314021,2416.7,2416.6,14.41738998]
[1726396759390,0.0314021,2416.7,2416.6,15.7221579]
[1726396759979,0.0314021,2416.7,2416.6,15.72213436]
[1726396760397,0.0314021,2416.7,2416.6,16.84846644]
[1726396760906,0.0314021,2416.7,2416.6,18.1532128]
[1726396761100,0.0314021,2416.7,2416.6,18.58941486]
[1726396761306,0.0314021,2416.7,2416.6,16.84846644]
[1726396761704,0.0314021,2416.7,2416.6,18.15322432]
[1726396761914,0.0314021,2416.7,2416.6,16.84846644]
[1726396762122,0.0314021,2416.7,2416.6,18.58941486]
[1726396763974,0.0314021,2416.7,2416.6,18.04671578]
[1726396764119,0.0314021,2416.7,2416.6,18.19871381]
[1726396764438,0.0314021,2416.7,2416.6,18.04671156]
[1726396764638,0.0314021,2416.7,2416.6,15.61561156]
[1726396767527,0.0314021,2416.7,2416.6,15.22492941]
[1726396767728,0.0314021,2416.7,2416.6,15.61560352]
[1726396768535,0.0314021,2416.7,2416.6,11.47756352]
[1726396768707,0.0314021,2416.7,2416.6,15.61560352]
[1726396769540,0.0314021,2416.7,2416.6,14.24209599]
[1726396769838,0.0314021,2416.7,2416.6,15.61838824]
[1726396770208,0.0314021,2416.7,2416.6,15.61838324]
[1726396770729,0.0314021,2416.7,2416.6,7.56338795]
[1726396771039,0.0314021,2416.7,2416.6,8.86827396]
[1726396771209,0.0314021,2416.7,2416.6,9.25895372]
[1726396771411,0.0314021,2416.7,2416.6,6.99181697]
[1726396774138,0.0314021,2416.7,2416.6,6.60113721]
[1726396774341,0.0314021,2416.7,2416.6,1.08680996]
[1726396774552,2.68455231,2416.7,2416.6,0.60760899]
[1726396774862,2.68455231,2416.7,2416.6,0.21689288]
[1726396775161,2.68455231,2416.7,2416.6,0.21672584]
[1726396775367,2.68455231,2416.7,2416.3,0.86991708]
[1726396775572,2.4091,2416.5,2416.4,1.37641378]
[1726396775862,2.4091,2416.5,2416.4,1.5933949]
[1726396777359,2.4091,2416.5,2416.4,0.21698112]
[1726396777664,2.4091,2416.5,2416.2,0.86991708]
[1726396777863,2.4091,2416.5,2416.4,0.21704838]
[1726396778053,0.75048275,2416.5,2416.3,0.21717604]
[1726396778368,0.75048275,2416.5,2416.2,0.86991708]
[1726396778369,2.4091,2416.4,2416.2,0.86991708]
[1726396778567,2.4091,2416.4,2416.3,1.37552996]
[1726396779155,2.4091,2416.4,2416.3,1.37553799]
[1726396781334,2.4091,2416.4,2416.1,5.00868708]
[1726396781535,2.4091,2416.4,2416.2,1.37501894]
[1726396781858,2.4091,2416.3,2416.1,0.86991708]
[1726396782044,2.4091,2416.3,2416.2,1.37502467]
[1726396783939,2.4091,2416.3,2416.2,1.37470701]
[1726396784333,2.4091,2416.5,2416.2,1.37470701]
[1726396784570,2.89426773,2416.5,2416.1,3.36461708]
[1726396784780,2.89426773,2416.5,2416.2,1.37458628]
[1726396784960,2.89426773,2416.5,2416.1,3.36461708]
[1726396785167,2.89426773,2416.5,2416.2,1.37457956]
[1726396785473,2.89426773,2416.5,2416.1,3.36461708]
[1726396785678,2.89426773,2416.5,2416.2,1.37449301]
[1726396785834,2.89426773,2416.5,2416.1,3.36461708]
[1726396786035,2.89426773,2416.5,2416.2,1.37449288]
[1726396786235,2.89426773,2416.5,2416.1,3.36461708]
[1726396786507,2.89426773,2416.5,2416.3,0.21731272]
[1726396786634,2.89426773,2416.5,2416.2,0.21744039]
[1726396786835,2.4091,2416.5,2416.4,0.21718506]
[1726396787064,2.4091,2416.5,2416.1,3.36461708]
[1726396787065,2.4091,2416.5,2416.3,0.21731272]
[1726396787259,2.4091,2416.5,2416.4,0.21718506]
[1726396787466,2.2814021,2416.7,2416.4,1.59148251]
[1726396787759,2.2814021,2416.7,2416.5,0.21705742]
[1726396788095,2.2814021,2416.7,2416.3,4.13851]
[1726396788297,2.2814021,2416.7,2416.6,0.21692978]
[1726396788454,2.2814021,2416.7,2416.3,4.13851]
[1726396788660,2.2814021,2416.7,2416.6,0.21692978]
[1726396789160,2.2814021,2416.7,2416.3,4.13851]
[1726396789379,2.2814021,2416.7,2416.4,5.72992428]
[1726396789686,2.2814021,2416.7,2416.4,4.35554506]
[1726396790097,0.0314021,2416.7,2416.5,6.58341]
[1726396790481,0.0314021,2416.7,2416.6,0.21692111]
[1726396794558,0.0314021,2416.7,2416.4,1.37437116]
[1726396794769,0.0314021,2416.7,2416.5,0.21704875]
[1726396794993,0.0314021,2416.7,2416.3,8.27689]
[1726396795196,0.0314021,2416.7,2416.6,0.21692111]
[1726396795502,0.0314021,2416.7,2416.3,4.13844]
[1726396795656,0.0314021,2416.7,2416.6,0.21692111]
[1726396795998,0.55954231,2416.7,2416.6,0.21692111]
[1726396796199,0.55954231,2416.7,2416.3,4.13844]
[1726396796380,0.0314021,2416.7,2416.6,0.21692111]
[1726396796595,0.0314021,2416.7,2416.3,4.13844]
[1726396796771,0.0314021,2416.7,2416.6,0.21692111]
[1726396796975,0.0314021,2416.7,2416.3,4.13844]
[1726396797173,0.0314021,2416.7,2416.4,0.2171764]